bitfinex/quotes_BTCUSD_20251113
["timestamp","ask_amount","ask_price","bid_price","bid_amount"]
[1763021328043,0.2505822,103600.0,103590.0,0.68603982]
[1763021328266,0.2505822,103600.0,103590.0,0.72603983]
[1763021328682,0.2505822,103600.0,103590.0,0.72703983]
[1763021328880,0.2505822,103600.0,103590.0,0.30447361]
[1763021329093,0.2505822,103600.0,103590.0,0.3077936]
[1763021329314,0.2505822,103600.0,103590.0,0.75137505]
[1763021329802,0.2505822,103600.0,103590.0,0.32880883]
[1763021330014,1.25028014,103600.0,103590.0,0.022]
[1763021330216,1.19754861,103600.0,103590.0,0.06432]
[1763021330420,0.77498239,103600.0,103590.0,0.06432]
[1763021330754,0.77498239,103600.0,103590.0,0.06332]
[1763021330948,0.77498239,103600.0,103590.0,0.06232]
[1763021331319,0.77498239,103600.0,103590.0,0.25538882]
[1763021331519,0.77498239,103600.0,103590.0,0.06232]
[1763021331717,0.77498239,103600.0,103590.0,0.08132001]
[1763021331929,0.76663239,103600.0,103590.0,0.13374001]
[1763021332189,0.76663239,103600.0,103590.0,0.09022]
[1763021332839,0.77498239,103600.0,103590.0,0.04232]
[1763021333031,0.77498239,103600.0,103590.0,0.08132001]
[1763021333232,0.77498239,103600.0,103590.0,0.06232]
[1763021333375,0.77498239,103600.0,103590.0,0.08132001]
[1763021334199,0.76663239,103600.0,103590.0,0.26328882]
[1763021334428,0.76663239,103600.0,103590.0,0.30228883]
[1763021334630,0.76663239,103600.0,103590.0,0.28780882]
[1763021334785,0.76663239,103600.0,103590.0,0.32680883]
[1763021335832,0.76663239,103600.0,103590.0,0.09022]
[1763021336031,0.76663239,103600.0,103590.0,0.07022]
[1763021336260,0.76663239,103600.0,103590.0,0.26328882]
[1763021336475,0.76663239,103600.0,103590.0,0.32680883]
[1763021336679,0.2505822,103600.0,103590.0,0.32680883]
[1763021337229,0.2505822,103600.0,103590.0,0.74937505]
[1763021337445,0.2505822,103600.0,103590.0,0.73037504]
[1763021337682,0.2505822,103600.0,103590.0,0.74937505]
[1763021339760,0.2505822,103600.0,103590.0,0.78108298]
[1763021339960,0.2505822,103600.0,103590.0,0.74937505]
[1763021340275,0.2505822,103600.0,103590.0,0.71037504]
[1763021340478,0.2505822,103600.0,103590.0,0.74937505]
[1763021340676,0.2505822,103600.0,103590.0,0.70705505]
[1763021340883,0.2505822,103600.0,103590.0,0.82925504]
[1763021341100,0.2505822,103600.0,103590.0,0.86825505]
[1763021341576,0.2505822,103600.0,103590.0,0.24848882]
[1763021341756,0.2505822,103600.0,103590.0,0.32980883]
[1763021341960,0.44363239,103600.0,103590.0,0.09322]
[1763021342103,0.44363239,103600.0,103590.0,0.28628882]
[1763021342304,0.2505822,103600.0,103590.0,0.32987883]
[1763021342677,0.2505822,103600.0,103590.0,0.75244505]
[1763021342927,0.2505822,103600.0,103590.0,0.71344504]
[1763021343139,0.2505822,103600.0,103590.0,0.30787882]
[1763021343351,0.2505822,103600.0,103590.0,0.32687883]
[1763021343834,0.2505822,103600.0,103590.0,0.74944505]
[1763021344814,0.2505822,103600.0,103590.0,0.74215297]
[1763021345026,0.2505822,103600.0,103590.0,0.78115298]
[1763021345948,0.2505822,103600.0,103590.0,0.74944505]
[1763021346307,0.2505822,103600.0,103590.0,0.75144505]
[1763021346548,0.2505822,103600.0,103590.0,0.75244505]
[1763021347423,1e-08,103600.0,103590.0,1.15057172]
[1763021347625,1e-08,103610.0,103600.0,0.59785893]
[1763021347831,1e-08,103610.0,103600.0,1.48199138]
[1763021348010,1e-08,103610.0,103600.0,1.49962658]
[1763021348625,0.00024228,103610.0,103600.0,1.49962658]
[1763021349152,0.00024228,103610.0,103600.0,1.89962658]
[1763021349573,0.00024228,103610.0,103600.0,1.90162658]
[1763021350782,1e-08,103610.0,103600.0,2.11162657]
[1763021351171,1e-08,103610.0,103600.0,2.1433345]
[1763021351387,1e-08,103610.0,103600.0,2.11162657]
[1763021351604,1e-08,103610.0,103600.0,2.1433345]
[1763021351855,1e-08,103610.0,103600.0,2.11162657]
[1763021352338,1e-08,103610.0,103600.0,2.10962657]
[1763021352810,1e-08,103610.0,103600.0,2.11262657]
[1763021353014,1e-08,103610.0,103600.0,2.11162657]
[1763021353222,1e-08,103610.0,103600.0,2.10962657]
[1763021353447,1e-08,103610.0,103600.0,2.11262657]
[1763021357540,1e-08,103610.0,103600.0,2.25912657]
[1763021359788,1e-08,103610.0,103600.0,2.37082656]
[1763021360819,1e-08,103610.0,103600.0,4.37082656]
[1763021361043,1e-08,103610.0,103600.0,4.38824655]
[1763021361248,1e-08,103610.0,103600.0,4.42724656]
[1763021361464,1e-08,103610.0,103600.0,4.52894656]
[1763021362364,1e-08,103620.0,103610.0,0.62026029]
[1763021362578,1e-08,103620.0,103610.0,1.26003445]
[1763021362791,0.00024223,103620.0,103610.0,1.22103444]
[1763021362999,0.00024223,103620.0,103610.0,1.26965227]
[1763021363218,0.00024223,103620.0,103610.0,1.70865228]
[1763021363408,0.00024223,103620.0,103610.0,1.70965228]
[1763021364291,0.00024223,103620.0,103610.0,1.67065227]
[1763021364549,1e-08,103620.0,103610.0,3.7023602]
[1763021364743,1e-08,103620.0,103610.0,3.70965228]
[1763021365097,1e-08,103620.0,103610.0,1.65623355]
[1763021365317,1e-08,103620.0,103610.0,1.00478756]
[1763021366334,1e-08,103620.0,103610.0,0.85828756]
[1763021366541,1e-08,103620.0,103610.0,0.49628755]
[1763021366742,1e-08,103620.0,103610.0,0.24484156]
[1763021366966,0.19301294,103620.0,103610.0,0.24484156]
[1763021367171,0.19301294,103620.0,103610.0,0.26128157]
[1763021367370,0.20136294,103620.0,103610.0,0.26128157]
[1763021367530,1e-08,103620.0,103610.0,0.22228156]
[1763021367733,0.19301294,103620.0,103610.0,0.24228156]
[1763021367956,0.19301294,103620.0,103610.0,0.26028157]
[1763021368377,0.20136294,103620.0,103610.0,0.03242]
[1763021369007,0.20236294,103620.0,103610.0,0.03242]
[1763021369379,0.20236294,103620.0,103610.0,0.22545156]
[1763021369595,0.20236294,103620.0,103590.0,0.0319]
[1763021369596,0.19305019,103600.0,103590.0,0.0319]
[1763021369794,0.52666358,103620.0,103610.0,0.03900001]
[1763021370048,0.19303156,103610.0,103600.0,0.25311019]
[1763021370246,0.20138156,103610.0,103600.0,0.02]
[1763021370409,0.19305019,103600.0,103590.0,0.28624883]
[1763021370757,0.19305019,103600.0,103590.0,0.07418]
[1763021370758,0.20140019,103600.0,103590.0,0.07418]
[1763021370903,0.20240019,103600.0,103590.0,0.26724882]
[1763021371098,0.20240019,103600.0,103590.0,0.07418]
[1763021371516,0.20240019,103600.0,103590.0,0.06228]
[1763021372310,0.001,103600.0,103590.0,0.26321882]
[1763021372531,0.001,103600.0,103590.0,0.28710882]
[1763021372741,0.001,103600.0,103590.0,0.32610883]
[1763021373118,0.002,103600.0,103590.0,0.32610883]
[1763021374125,0.19505019,103600.0,103590.0,0.32610883]
[1763021374298,0.002,103600.0,103590.0,0.32610883]
[1763021374501,0.19505019,103600.0,103590.0,0.32610883]
[1763021374701,0.002,103600.0,103590.0,0.32610883]
[1763021374905,0.19505019,103600.0,103590.0,0.30710882]
[1763021375062,0.19505019,103600.0,103590.0,0.09015]
[1763021375559,0.45484618,103600.0,103590.0,0.04228]
[1763021375769,0.20340019,103600.0,103590.0,0.25534882]
[1763021375949,0.20340019,103600.0,103590.0,0.04228]
[1763021376177,0.21175019,103600.0,103590.0,0.06228]
[1763021376380,0.19505019,103600.0,103590.0,0.30710882]
[1763021376512,0.19505019,103600.0,103590.0,0.32610883]
[1763021376717,0.20340019,103600.0,103590.0,0.04228]
[1763021376920,0.20340019,103600.0,103590.0,0.08128001]
[1763021377143,0.78619618,103600.0,103590.0,0.04228]
[1763021377344,0.19307668,103590.0,103580.0,0.23208747]
[1763021377529,0.20142668,103590.0,103580.0,0.25550736]
[1763021377731,0.20977668,103590.0,103580.0,0.27450737]
[1763021378122,0.20141882,103590.0,103580.0,0.0585899]
[1763021378346,0.20141882,103590.0,103580.0,0.25550736]
[1763021378347,0.20976882,103590.0,103580.0,0.25550736]
[1763021378732,0.00835,103590.0,103580.0,0.29067737]
[1763021378905,0.20141882,103590.0,103580.0,0.31456737]
[1763021379267,0.00835,103590.0,103580.0,0.29556736]
[1763021379635,0.51605653,103600.0,103580.0,0.27556736]
[1763021379860,0.51605653,103600.0,103590.0,0.06687001]
[1763021380060,0.51605653,103600.0,103590.0,0.25993883]
[1763021380195,0.51605653,103600.0,103590.0,0.24093882]
[1763021380421,0.323,103600.0,103590.0,0.24093882]
[1763021380620,0.51605019,103600.0,103590.0,0.25993883]
[1763021381674,0.51705019,103600.0,103590.0,0.25993883]
[1763021381901,0.324,103600.0,103590.0,0.25993883]
[1763021382030,0.51705019,103600.0,103590.0,0.26482882]
[1763021382233,0.51805019,103600.0,103590.0,0.28382883]
[1763021382433,0.51805019,103600.0,103590.0,0.05176]
[1763021382633,0.19306882,103590.0,103580.0,0.27939736]
[1763021382881,0.19306882,103590.0,103580.0,0.25550736]
[1763021383079,0.20141882,103590.0,103580.0,0.25550736]
[1763021383282,0.19306882,103590.0,103580.0,0.25550736]
[1763021383439,0.19306882,103590.0,103580.0,0.29067737]
[1763021383646,0.77684618,103600.0,103590.0,0.02]
[1763021383893,0.20141882,103590.0,103580.0,0.0624199]
[1763021384460,0.20141882,103590.0,103580.0,0.0424199]
[1763021384675,0.46121481,103590.0,103580.0,0.0424199]
[1763021384883,0.82763355,103590.0,103580.0,0.0424199]
[1763021385732,0.82763355,103590.0,103580.0,0.0001399]
[1763021386204,0.82763355,103590.0,103580.0,0.0201399]
[1763021386849,0.82863355,103590.0,103580.0,0.0201399]
[1763021387406,0.83063355,103590.0,103580.0,0.0201399]
[1763021387607,0.82863355,103590.0,103580.0,0.0201399]
[1763021388031,0.82963355,103590.0,103580.0,0.0201399]
[1763021389153,0.57818756,103590.0,103580.0,0.0001399]
[1763021389673,0.82963355,103590.0,103580.0,0.0001399]
[1763021389833,0.82963355,103590.0,103580.0,0.0201399]
[1763021390249,0.82963355,103590.0,103580.0,0.0001399]
[1763021390793,0.82963355,103590.0,103580.0,0.0201399]
[1763021391343,0.82963355,103590.0,103580.0,0.0001399]
[1763021391741,0.82963355,103590.0,103580.0,0.0201399]
[1763021394792,0.82963355,103590.0,103580.0,0.0001399]
[1763021394992,0.82963355,103590.0,103580.0,0.0201399]
[1763021395585,0.82963355,103590.0,103580.0,0.0001399]
[1763021395948,0.57818756,103590.0,103580.0,0.0001399]
[1763021396145,0.82963355,103590.0,103580.0,0.0001399]
[1763021396903,0.82963355,103590.0,103580.0,0.0201399]
[1763021397149,0.82963355,103590.0,103580.0,0.0001399]
[1763021397513,0.82963355,103590.0,103580.0,0.0201399]
[1763021397918,0.82963355,103590.0,103580.0,0.0001399]
[1763021398121,0.82963355,103590.0,103580.0,0.0201399]
[1763021398527,0.82963355,103590.0,103580.0,0.0001399]
[1763021398864,1.24320023,103590.0,103580.0,0.0001399]
[1763021399180,0.57818756,103590.0,103580.0,0.0001399]
[1763021399327,1.33011896,103590.0,103580.0,0.0001399]
[1763021399725,1.99513163,103590.0,103580.0,0.0201399]
[1763021399930,0.99765255,103590.0,103580.0,0.0001399]
[1763021400135,2.26661712,103590.0,103580.0,0.0001399]
[1763021401467,2.26661712,103590.0,103580.0,0.0201399]
[1763021401661,2.26661712,103590.0,103580.0,0.0001399]
[1763021401888,1.60160445,103590.0,103580.0,0.0001399]
[1763021402737,1.7000248,103590.0,103580.0,0.0001399]
[1763021402910,2.36503747,103590.0,103580.0,0.0001399]
[1763021403830,0.1931434,103550.0,103540.0,0.1272]
[1763021404034,0.2098434,103550.0,103540.0,0.16998661]
[1763021404406,0.2014934,103550.0,103540.0,0.37875867]
[1763021404610,0.2014934,103550.0,103540.0,0.40277867]
[1763021404797,0.2014934,103550.0,103540.0,0.18559661]
[1763021405002,0.2098434,103550.0,103540.0,0.18559661]
[1763021405722,0.79315676,103550.0,103540.0,0.15858661]
[1763021406146,0.3397,103550.0,103540.0,0.15858661]
[1763021406343,0.2014934,103550.0,103540.0,0.39137867]
[1763021406807,0.2014934,103550.0,103540.0,0.36735867]
[1763021407042,0.2317852,103570.0,103550.0,0.19313462]
[1763021407220,0.52447475,103560.0,103550.0,0.20550462]
[1763021407421,0.52447475,103560.0,103550.0,0.24782462]
[1763021407631,0.52447475,103560.0,103550.0,0.05469]
[1763021407800,0.52447475,103560.0,103550.0,0.2478334]
[1763021408591,0.52847475,103560.0,103550.0,0.2478334]
[1763021409541,0.33535,103560.0,103550.0,0.2634434]
[1763021409742,0.004,103560.0,103550.0,0.53942676]
[1763021411415,0.002,103560.0,103550.0,0.53942676]
[1763021411802,0.003,103560.0,103550.0,0.53942676]
[1763021412837,0.001,103560.0,103550.0,0.53942676]
[1763021413444,0.53409247,103580.0,103550.0,0.53942676]
[1763021413445,0.20270269,103600.0,103580.0,0.19308746]
[1763021413672,0.20270269,103600.0,103590.0,0.04232]
[1763021413876,0.52570269,103600.0,103590.0,0.04232]
[1763021414077,0.54240269,103600.0,103590.0,0.04232]
[1763021414287,0.56753141,103600.0,103590.0,0.04232]
[1763021414493,0.24453141,103600.0,103590.0,0.04232]
[1763021414700,0.56767123,103600.0,103590.0,0.04232]
[1763021415425,0.54254251,103600.0,103590.0,0.04232]
[1763021415832,0.51619001,103600.0,103590.0,0.28738882]
[1763021416375,0.51719001,103600.0,103590.0,0.28738882]
[1763021416570,0.51719001,103600.0,103590.0,0.09432]
[1763021416794,0.51719001,103600.0,103590.0,0.0703]
[1763021417000,0.51819001,103600.0,103590.0,0.26336882]
[1763021417371,0.52019001,103600.0,103590.0,0.0703]
[1763021417575,0.52019001,103600.0,103590.0,0.26336882]
[1763021417776,0.52019001,103600.0,103590.0,0.0703]
[1763021417993,0.19719001,103600.0,103590.0,0.0703]
[1763021418743,0.52019001,103600.0,103590.0,0.26336882]
[1763021418945,0.32713982,103600.0,103590.0,0.26336882]
[1763021419067,0.00413982,103600.0,103590.0,0.28738882]
[1763021419276,0.00413982,103600.0,103590.0,0.53935218]
[1763021420107,0.00213982,103600.0,103590.0,0.53935218]
[1763021420402,0.00013982,103600.0,103590.0,0.53935218]
[1763021420615,0.00213982,103600.0,103590.0,0.53935218]
[1763021420837,0.71581673,103600.0,103590.0,0.04232]
[1763021421047,0.56227372,103600.0,103590.0,0.04232]
[1763021421453,0.46385337,103600.0,103590.0,0.04232]
[1763021421879,0.21189001,103600.0,103590.0,0.04232]
[1763021422084,0.46385337,103600.0,103590.0,0.04232]
[1763021422916,0.21189001,103600.0,103590.0,0.04232]
[1763021423478,0.20354001,103600.0,103590.0,0.04232]
[1763021423721,0.21189001,103600.0,103590.0,0.04232]
[1763021426998,0.5073105,103600.0,103590.0,0.04232]
[1763021430944,0.21189001,103600.0,103590.0,0.04232]
[1763021431187,0.4989605,103600.0,103590.0,0.04232]
[1763021431951,0.5073105,103600.0,103590.0,0.04232]
[1763021432832,0.5073105,103600.0,103590.0,0.05415]
[1763021432833,0.20354001,103600.0,103590.0,0.05415]
[1763021433250,0.20354001,103600.0,103590.0,0.06953]
[1763021433456,0.19519001,103600.0,103590.0,0.09295]
[1763021433661,0.19519001,103600.0,103590.0,0.28601882]
[1763021433867,0.19519001,103600.0,103590.0,0.09295]
[1763021434137,0.19519001,103600.0,103590.0,0.28601882]
[1763021434675,0.19519001,103600.0,103590.0,0.09295]
[1763021434859,0.20354001,103600.0,103590.0,0.05415]
[1763021435067,0.20354001,103600.0,103590.0,0.04232]
[1763021435619,0.20354001,103600.0,103590.0,0.05415]
[1763021435842,0.19519001,103600.0,103590.0,0.26259882]
[1763021436520,0.19519001,103600.0,103590.0,0.28601882]
[1763021436882,0.19519001,103600.0,103590.0,0.06953]
[1763021440695,0.20354001,103600.0,103590.0,0.05415]
[1763021440907,0.19308746,103580.0,103570.0,0.01237]
[1763021441119,0.19310611,103570.0,103560.0,0.22837475]
[1763021441327,0.20145611,103570.0,103560.0,0.27065475]
[1763021441584,0.20145611,103570.0,103560.0,0.09291]
[1763021441787,0.00835,103570.0,103560.0,0.28603475]
[1763021441995,0.20145611,103570.0,103560.0,0.28603475]
[1763021442863,0.00835,103570.0,103560.0,0.28603475]
[1763021443071,0.20145611,103570.0,103560.0,0.28603475]
[1763021445653,0.20145611,103570.0,103560.0,0.06949]
[1763021446751,0.20145611,103570.0,103560.0,0.26261475]
[1763021448791,0.20145611,103570.0,103560.0,0.28603475]
[1763021449222,0.00835,103570.0,103560.0,0.28603475]
[1763021449649,0.20145611,103570.0,103560.0,0.28603475]
[1763021450086,0.20145611,103570.0,103560.0,0.09291]
[1763021450659,0.20145611,103570.0,103560.0,0.26261475]
[1763021450887,0.20145611,103570.0,103560.0,0.06949]
[1763021451226,0.20145611,103570.0,103560.0,0.28603475]
[1763021451834,0.00835,103570.0,103560.0,0.28603475]
[1763021452447,0.20143746,103580.0,103570.0,0.19310611]
[1763021452826,0.20143746,103580.0,103560.0,0.27065475]
[1763021453127,0.20978746,103580.0,103570.0,0.19310611]
[1763021453533,0.20978746,103580.0,103560.0,0.27065475]
[1763021453712,0.21078746,103580.0,103570.0,0.19310611]
[1763021453916,0.21078746,103580.0,103560.0,0.27065475]
[1763021454117,0.21078746,103580.0,103570.0,0.19310611]
[1763021454347,0.20978746,103580.0,103570.0,0.19310611]
[1763021455033,0.21078746,103580.0,103560.0,0.27065475]
[1763021455234,0.21078746,103580.0,103570.0,0.19310611]
[1763021455401,0.21078746,103580.0,103570.0,0.20493611]
[1763021456282,0.21178746,103580.0,103570.0,0.01183]
[1763021456464,0.21178746,103580.0,103570.0,0.20493611]
[1763021456708,0.19310611,103570.0,103560.0,0.07753]
[1763021456895,0.20145611,103570.0,103560.0,0.04228]
[1763021457303,0.20145611,103570.0,103560.0,0.23540475]
[1763021457506,0.20145611,103570.0,103560.0,0.24723475]
[1763021457922,0.20145611,103570.0,103560.0,0.26261475]
[1763021458073,0.19310611,103570.0,103560.0,0.28603475]
[1763021458279,0.19310611,103570.0,103560.0,0.09291]
[1763021458486,0.63192463,103580.0,103560.0,0.28603475]
[1763021458487,0.20143746,103580.0,103560.0,0.28603475]
[1763021458688,0.20143746,103580.0,103570.0,0.01183]
[1763021458876,0.20143746,103580.0,103570.0,0.20493611]
[1763021459904,0.20243746,103580.0,103570.0,0.20493611]
[1763021461354,0.001,103580.0,103570.0,0.66682328]
[1763021462395,0.002,103580.0,103570.0,0.69853121]
[1763021462604,0.002,103580.0,103570.0,0.66682328]
[1763021463191,0.001,103580.0,103570.0,0.66682328]
[1763021464230,0.19306985,103590.0,103580.0,0.19308746]
[1763021464470,0.19306985,103590.0,103580.0,0.28747746]
[1763021465325,0.21119295,103600.0,103590.0,0.19306882]
[1763021465575,0.21119295,103600.0,103590.0,0.22085882]
[1763021466093,0.00848982,103600.0,103590.0,0.22085882]
[1763021466501,0.20154001,103600.0,103590.0,0.22085882]
[1763021466706,0.20354001,103600.0,103590.0,0.22085882]
[1763021466920,0.01048982,103600.0,103590.0,0.22085882]
[1763021467769,0.01248982,103600.0,103590.0,0.24517882]
[1763021468272,0.20554001,103600.0,103590.0,0.24517882]
[1763021468732,0.01248982,103600.0,103590.0,0.24517882]
[1763021468867,0.20554001,103600.0,103590.0,0.24517882]
[1763021469061,0.01248982,103600.0,103590.0,0.22085882]
[1763021469294,0.20554001,103600.0,103590.0,0.22085882]
[1763021469480,0.5092883,103600.0,103590.0,0.01198]
[1763021469687,0.21389001,103600.0,103590.0,0.01198]
[1763021470720,0.21389001,103600.0,103590.0,0.20504882]
[1763021471894,0.21389001,103600.0,103590.0,0.01198]
[1763021472092,0.21389001,103600.0,103590.0,0.20504882]
[1763021473433,0.20554001,103600.0,103590.0,0.24517882]
[1763021474031,0.00413982,103600.0,103590.0,0.54057711]
[1763021474234,1e-08,103620.0,103610.0,0.19303156]
[1763021474486,1e-08,103620.0,103610.0,0.93969445]
[1763021476262,1e-08,103620.0,103610.0,0.90581985]
[1763021477700,1e-08,103620.0,103610.0,0.90681985]
[1763021477909,1e-08,103620.0,103610.0,0.90781985]
[1763021478919,1e-08,103620.0,103610.0,1.03407024]
[1763021480128,1e-08,103620.0,103610.0,0.61242156]
[1763021480529,0.19301294,103620.0,103610.0,0.61242156]
[1763021480734,0.19301294,103620.0,103610.0,0.28942156]
[1763021480922,0.19301294,103620.0,103610.0,0.26510156]
[1763021481326,1e-08,103620.0,103610.0,0.28942156]
[1763021481523,1e-08,103620.0,103610.0,0.28842156]
[1763021481988,1e-08,103620.0,103610.0,0.28742156]
[1763021482323,0.00100001,103620.0,103610.0,0.28742156]
[1763021483542,0.19401294,103620.0,103610.0,0.28742156]
[1763021484090,0.00100001,103620.0,103610.0,0.70907024]
[1763021484733,0.00100001,103620.0,103610.0,0.28742156]
[1763021484943,0.19401294,103620.0,103610.0,0.28742156]
[1763021486109,0.19401294,103620.0,103600.0,0.2233583]
[1763021486110,0.20650294,103620.0,103600.0,0.2233583]
[1763021486426,0.20650294,103620.0,103610.0,0.23531156]
[1763021486632,0.20650294,103620.0,103610.0,0.24729156]
[1763021486826,0.20650294,103620.0,103610.0,0.05426]
[1763021487106,0.20650294,103620.0,103610.0,0.24729156]
[1763021487397,0.20550294,103620.0,103610.0,0.26310156]
[1763021487904,0.20550294,103620.0,103610.0,0.07007]
[1763021488111,0.20550294,103620.0,103610.0,0.05426]
[1763021488343,0.20550294,103620.0,103610.0,0.04228]
[1763021489013,0.20650294,103620.0,103610.0,0.04228]
[1763021489348,0.20650294,103620.0,103610.0,0.23531156]
[1763021489567,0.19401294,103620.0,103610.0,0.28675156]
[1763021489766,0.19401294,103620.0,103610.0,0.09372]
[1763021489954,0.19401294,103620.0,103610.0,0.07007]
[1763021490359,0.19401294,103620.0,103610.0,0.26310156]
[1763021491306,0.20650294,103620.0,103610.0,0.05426]
[1763021491486,0.00100001,103620.0,103610.0,0.28614156]
[1763021491858,0.00100001,103620.0,103610.0,0.28485156]
[1763021492599,0.19401294,103620.0,103610.0,0.28485156]
[1763021493003,0.00100001,103620.0,103610.0,0.28485156]
[1763021493994,0.00100001,103620.0,103610.0,0.53645346]
[1763021494605,0.00104662,103620.0,103610.0,0.53645346]
[1763021497627,4.662e-05,103620.0,103610.0,0.53645346]
[1763021497835,4.662e-05,103620.0,103610.0,0.53745346]
[1763021498064,4.662e-05,103620.0,103610.0,0.53845346]
[1763021498493,4.662e-05,103620.0,103610.0,0.24586156]
[1763021498701,4.662e-05,103620.0,103610.0,0.28810156]
[1763021498702,0.19305955,103620.0,103610.0,0.28810156]
[1763021499103,4.662e-05,103620.0,103610.0,0.28810156]
[1763021499389,4.662e-05,103620.0,103610.0,0.50753743]
[1763021500662,4.662e-05,103620.0,103610.0,0.7289733]
[1763021500871,0.19305955,103620.0,103610.0,0.31450587]
[1763021501098,0.19305955,103620.0,103610.0,0.28610156]
[1763021501312,0.19305955,103620.0,103610.0,0.09307]
[1763021501522,0.19305955,103620.0,103610.0,0.06942]
[1763021501723,0.19305955,103620.0,103610.0,0.28610156]
[1763021501924,4.662e-05,103620.0,103610.0,0.50753743]
[1763021502198,0.19305955,103620.0,103610.0,0.28610156]
[1763021504088,4.662e-05,103620.0,103610.0,0.50753743]
[1763021504304,0.19305955,103620.0,103610.0,0.50753743]
[1763021504738,4.662e-05,103620.0,103610.0,0.50753743]
[1763021506203,4.662e-05,103620.0,103610.0,0.7289733]
[1763021506418,0.19305955,103620.0,103610.0,0.50753743]
[1763021506618,4.662e-05,103620.0,103610.0,0.50753743]
[1763021508689,4.662e-05,103620.0,103610.0,0.7289733]
[1763021509739,4.662e-05,103620.0,103610.0,0.50753743]
[1763021509993,0.19305955,103620.0,103610.0,0.7289733]
[1763021510208,4.662e-05,103620.0,103610.0,0.7289733]
[1763021510383,0.19305955,103620.0,103610.0,0.7289733]
[1763021510740,4.662e-05,103620.0,103610.0,0.7289733]
[1763021512961,4.662e-05,103620.0,103610.0,0.50753743]
[1763021513161,0.19305955,103620.0,103610.0,0.06942]
[1763021513369,0.20554955,103620.0,103610.0,0.26245156]
[1763021513569,0.20554955,103620.0,103610.0,0.06942]
[1763021513979,0.20554955,103620.0,103610.0,0.26245156]
[1763021514195,0.73466696,103620.0,103610.0,0.04224]
[1763021514408,0.20270269,103600.0,103590.0,0.04224]
[1763021514617,0.98520443,103600.0,103590.0,0.04224]
[1763021514823,0.99769443,103600.0,103590.0,0.04224]
[1763021515030,0.19308746,103580.0,103570.0,0.23823125]
[1763021515240,0.19308746,103580.0,103570.0,0.07771]
[1763021515379,0.19308746,103580.0,103570.0,0.28601611]
[1763021515798,0.19308746,103580.0,103570.0,0.09291]
[1763021516019,0.19308746,103580.0,103570.0,0.28601611]
[1763021516217,0.19313405,103580.0,103570.0,0.28601611]
[1763021516422,4.659e-05,103580.0,103570.0,0.28601611]
[1763021516628,4.659e-05,103580.0,103570.0,0.50745198]
[1763021516858,4.659e-05,103580.0,103570.0,0.28601611]
[1763021517860,4.659e-05,103580.0,103570.0,0.53779974]
[1763021518526,4.659e-05,103580.0,103570.0,0.28601611]
[1763021518814,4.659e-05,103580.0,103570.0,0.53779974]
[1763021526952,0.19313405,103580.0,103570.0,0.09291]
[1763021527157,0.19313405,103580.0,103570.0,0.28601611]
[1763021527365,0.19313405,103580.0,103570.0,0.09291]
[1763021527580,0.21397405,103580.0,103570.0,0.05406]
[1763021528342,0.21397405,103580.0,103570.0,0.06919]
[1763021528793,0.21397405,103580.0,103570.0,0.05406]
[1763021529006,0.47824768,103580.0,103570.0,0.04224]
[1763021529233,0.22646405,103580.0,103570.0,0.04224]
[1763021529550,0.21397405,103580.0,103570.0,0.23534611]
[1763021530176,0.21397405,103580.0,103570.0,0.24772611]
[1763021530878,0.21497405,103580.0,103570.0,0.05462]
[1763021531056,0.21497405,103580.0,103570.0,0.01238]
[1763021531257,0.21497405,103580.0,103570.0,0.05466]
[1763021531645,0.21497405,103580.0,103570.0,0.04228]
[1763021531888,0.22746405,103580.0,103570.0,0.04228]
[1763021532030,0.21497405,103580.0,103570.0,0.23538611]
[1763021532243,0.21497405,103580.0,103570.0,0.04228]
[1763021533169,0.21497405,103580.0,103570.0,0.23538611]
[1763021533801,0.21497405,103580.0,103570.0,0.04228]
[1763021534490,0.21497405,103580.0,103570.0,0.23538611]
[1763021534785,0.21497405,103580.0,103570.0,0.26289611]
[1763021535266,0.00104659,103580.0,103570.0,0.53959974]
[1763021535442,0.00104659,103580.0,103570.0,0.28781611]
[1763021535793,0.19413405,103580.0,103570.0,0.28781611]
[1763021536408,0.00104659,103580.0,103570.0,0.28781611]
[1763021536620,0.19413405,103580.0,103570.0,0.28781611]
[1763021536816,0.19312475,103560.0,103550.0,0.01182]
[1763021537020,0.20975475,103560.0,103550.0,0.04228]
[1763021537222,0.47402838,103560.0,103550.0,0.04228]
[1763021537419,0.51744712,103560.0,103550.0,0.04228]
[1763021537881,1.09223075,103560.0,103550.0,0.04228]
[1763021538112,1.12122459,103560.0,103550.0,0.04328]
[1763021538508,1.12122459,103560.0,103550.0,0.04228]
[1763021538913,1.12222459,103560.0,103550.0,0.04228]
[1763021539112,1.12322459,103560.0,103550.0,0.04228]
[1763021539596,1.22164494,103560.0,103550.0,0.04228]
[1763021539998,0.87144096,103560.0,103550.0,0.04228]
[1763021540396,0.23657323,103550.0,103540.0,0.04228]
[1763021540604,0.24906323,103550.0,103540.0,0.23544206]
[1763021540933,0.01249,103550.0,103540.0,0.23544206]
[1763021541440,0.00514,103560.0,103550.0,0.1931434]
[1763021541672,0.19312475,103560.0,103550.0,0.05243]
[1763021541842,0.19312475,103560.0,103550.0,0.2455734]
[1763021542043,0.19312475,103560.0,103550.0,0.02751]
[1763021542264,0.1931434,103550.0,103540.0,0.04228]
[1763021542407,0.2097734,103550.0,103540.0,0.04228]
[1763021542612,0.2097734,103550.0,103540.0,0.25057206]
[1763021543198,0.1972834,103550.0,103540.0,0.25057206]
[1763021543403,0.1972834,103550.0,103540.0,0.27549206]
[1763021543729,0.2097734,103550.0,103540.0,0.25057206]
[1763021544154,0.2097734,103550.0,103540.0,0.04228]
[1763021544515,0.2222634,103550.0,103540.0,0.04228]
[1763021545425,0.47404703,103550.0,103540.0,0.04228]
[1763021546381,0.2222634,103550.0,103540.0,0.04228]
[1763021546546,0.2097734,103550.0,103540.0,0.23544206]
[1763021546743,0.1972834,103550.0,103540.0,0.25057206]
[1763021546958,0.2097734,103550.0,103540.0,0.04228]
[1763021547164,0.2222634,103550.0,103540.0,0.04228]
[1763021550196,0.00414,103550.0,103540.0,0.27551206]
[1763021550347,0.51612475,103560.0,103540.0,0.27551206]
[1763021551048,0.19312475,103560.0,103550.0,0.2213034]
[1763021551265,0.19310611,103570.0,103560.0,0.19312475]
[1763021551466,0.19310611,103570.0,103560.0,0.23540475]
[1763021551875,0.20559611,103570.0,103560.0,0.23540475]
[1763021553148,0.20559611,103570.0,103560.0,0.04228]
[1763021553454,0.19710611,103570.0,103560.0,0.25143475]
[1763021554583,0.20959611,103570.0,103560.0,0.25143475]
[1763021555163,0.20959611,103570.0,103560.0,0.04228]
[1763021555573,0.20959611,103570.0,103560.0,0.23540475]
[1763021558157,0.20959611,103570.0,103560.0,0.04228]
[1763021559440,0.64444616,103570.0,103560.0,0.04228]
[1763021561246,0.22208611,103570.0,103560.0,0.04228]
[1763021562165,0.20959611,103570.0,103560.0,0.25143475]